bitfinex-derivatives/quotes_ETHF0:USTF0_20250620
["timestamp","ask_amount","ask_price","bid_price","bid_amount"]
[1750429745841,11.1158,2521.2,2521.1,0.79323]
[1750429746141,0.79325,2521.1,2521.0,0.79326]
[1750429746438,0.79325,2521.1,2520.8,1.3113]
[1750429746439,0.79327,2521.0,2520.9,0.79328]
[1750429746648,0.79324,2521.1,2521.0,0.79325]
[1750429746847,1.07989436,2521.1,2521.0,0.79326]
[1750429747042,35.94289436,2521.1,2521.0,0.79326]
[1750429747649,34.863,2521.1,2521.0,0.79326]
[1750429747945,34.863,2521.1,2520.8,1.3113]
[1750429748141,34.863,2521.1,2520.5,3.2078]
[1750429748448,0.79329,2520.9,2520.8,0.7933]
[1750429748747,0.79332,2520.8,2520.7,0.79333]
[1750429748941,26.953,2520.8,2520.7,0.79333]
[1750429750848,26.949,2520.8,2520.6,3.33603]
[1750429751049,26.949,2520.8,2520.7,0.79335]
[1750429751347,1.98313,2521.1,2520.6,1.3526]
[1750429751548,0.79335,2520.7,2520.6,1.3526]
[1750429751743,0.79344,2520.5,2520.4,0.79342]
[1750429751950,11.29784348,2520.5,2519.9,3.2078]
[1750429752144,27.73546,2520.4,2520.0,1.98395]
[1750429752344,27.73546,2520.4,2520.3,0.79348]
[1750429752542,27.73546,2520.4,2519.9,3.2078]
[1750429752543,0.79362,2519.9,2519.8,0.79362]
[1750429752748,1.98411,2519.8,2519.0,3.2078]
[1750429752955,16.48993348,2519.6,2519.0,3.2078]
[1750429753249,34.844,2519.5,2519.0,3.2078]
[1750429753444,0.79381,2519.3,2519.1,0.79384]
[1750429753646,27.72984,2519.2,2519.0,4.00167]
[1750429753843,26.936,2519.2,2519.1,0.79386]
[1750429754346,7.906,2519.4,2519.2,0.79381]
[1750429754546,7.906,2519.4,2519.0,3.2078]
[1750429754547,11.1138,2519.6,2519.5,0.79374]
[1750429754850,26.934,2519.7,2519.4,3.2078]
[1750429755046,3.2078,2520.0,2519.9,0.79361]
[1750429755247,3.2078,2520.3,2520.2,0.79352]
[1750429755442,39.12204583,2520.3,2520.2,0.79352]
[1750429755647,38.0498,2520.3,2520.2,0.79352]
[1750429756450,38.0498,2520.3,2519.9,1.2724]
[1750429756748,34.84,2520.2,2520.1,0.79352]
[1750429756951,27.72652,2520.2,2520.0,0.79356]
[1750429757151,27.72652,2520.2,2519.9,1.2724]
[1750429757352,26.933,2520.2,2520.1,0.79355]
[1750429758152,3.2078,2520.3,2520.2,0.79352]
[1750429758452,30.1368,2520.3,2520.2,0.79352]
[1750429758655,3.2078,2520.3,2520.2,0.79352]
[1750429758952,30.1368,2520.3,2520.2,0.79352]
[1750429759150,26.927,2520.3,2520.0,5.19173]
[1750429759341,26.927,2520.3,2520.2,0.79352]
[1750429759754,3.2078,2520.6,2520.5,0.79342]
[1750429761052,3.2078,2520.6,2520.3,2.06686]
[1750429761353,0.79345,2520.4,2520.3,0.79346]
[1750429761551,27.71545,2520.4,2520.3,0.79346]
[1750429761863,26.922,2520.4,2520.3,0.79346]
[1750429762055,3.2078,2520.6,2520.5,0.79342]
[1750429762251,30.1258,2520.6,2520.5,0.79342]
[1750429763158,26.918,2520.6,2520.5,0.79342]
[1750429763355,11.9071,2520.9,2520.8,0.79333]
[1750429763657,30.9151,2520.9,2520.8,0.79333]
[1750429763848,3.2078,2520.9,2520.8,0.79333]
[1750429764049,7.906,2521.1,2521.0,0.79326]
[1750429764248,7.906,2521.1,2520.6,3.25927]
[1750429764249,35.89574204,2521.1,2520.7,1.2758]
[1750429764448,34.818,2521.1,2520.7,1.2758]
[1750429764858,0.79328,2521.0,2520.9,0.79329]
[1750429765063,34.818,2521.1,2520.8,0.7933]
[1750429765257,35.61125,2521.1,2520.7,1.2758]
[1750429765456,35.61125,2521.1,2521.0,0.79326]
[1750429765756,0.79327,2521.0,2520.7,1.2758]
[1750429765956,0.79327,2521.0,2520.9,0.7933]
[1750429766356,34.818,2521.1,2520.7,2.06914]
[1750429766546,0.79332,2520.9,2520.7,2.06914]
[1750429766750,26.905,2520.8,2520.7,2.06914]
[1750429766958,26.905,2520.8,2520.7,0.79334]
[1750429767351,26.905,2520.8,2520.6,1.57776]
[1750429767556,10.1527366,2520.7,2520.6,0.79339]
[1750429767751,18.0577366,2520.7,2519.4,1.9844]
[1750429767956,10.1527366,2519.9,2519.4,0.79374]
[1750429768150,10.1527366,2519.9,2519.3,0.7719]
[1750429768151,10.1527366,2519.6,2519.3,0.79378]
[1750429768355,10.1527366,2519.6,2519.4,0.79376]
[1750429768356,26.9,2519.5,2519.4,0.79376]
[1750429768556,3.2078,2519.7,2519.6,0.79371]
[1750429768759,27.69267,2519.7,2519.5,0.79371]
[1750429768959,26.898,2519.8,2519.7,0.79367]
[1750429769562,26.896,2520.5,2519.7,26.2225366]
[1750429769759,3.2078,2520.6,2520.5,0.79342]
[1750429770262,26.896,2520.8,2520.7,0.79336]
[1750429770460,7.862,2521.0,2520.9,0.7933]
[1750429770657,34.757,2521.0,2520.9,0.7933]
[1750429770866,26.895,2521.0,2520.9,0.7933]
[1750429771456,3.2078,2521.1,2521.0,0.79326]
[1750429771662,7.863,2521.3,2521.2,0.7932]
[1750429771859,0.07932415,2521.3,2521.2,0.7932]
[1750429773361,0.07932415,2521.3,2521.2,4.001]
[1750429773856,1e-08,2521.3,2521.2,9.001]
[1750429774764,4.00073,2522.1,2521.2,8.2078]
[1750429774959,3.2078,2522.1,2522.0,0.79295]
[1750429775162,0.79287,2522.3,2521.8,1.98254]
[1750429775362,3.2078,2522.4,2521.8,1.98254]
[1750429775363,0.79285,2522.4,2521.8,1.98254]
[1750429775567,26.881,2522.5,2522.2,0.79286]
[1750429775769,0.79284,2522.4,2521.9,3.2078]
[1750429776063,26.881,2522.5,2522.2,0.79287]
[1750429776371,0.79284,2522.4,2521.7,1.98258]
[1750429776565,27.67382,2522.5,2521.9,1.98246]
[1750429776768,0.79284,2522.4,2522.2,0.79286]
[1750429776965,0.79287,2522.3,2522.1,0.7929]
[1750429777364,3.2078,2522.4,2521.9,3.2078]
[1750429777567,0.79291,2522.2,2522.0,0.79294]
[1750429778065,26.871,2522.3,2521.7,3.2078]
[1750429778269,27.66387,2522.3,2522.1,0.79289]
[1750429779067,27.66387,2522.3,2522.2,0.79289]
[1750429779262,56.7878,2522.7,2521.7,5.31729]
[1750429779472,26.866,2522.6,2522.1,3.2078]
[1750429779767,12.5502638,2523.0,2522.1,3.2078]
[1750429779768,3.2078,2523.0,2522.9,0.79267]
[1750429779970,3.2078,2523.0,2522.7,0.79271]
[1750429779971,0.79268,2522.9,2522.7,0.79271]
[1750429780168,3.2078,2523.0,2522.5,3.2078]
[1750429780369,11.2886638,2522.9,2522.6,0.79275]
[1750429780574,0.7927,2522.8,2522.6,0.79275]
[1750429780866,20.4102638,2522.9,2522.2,3.2078]
[1750429781072,0.7928,2522.5,2522.2,3.2078]
[1750429781271,3.2078,2522.6,2522.2,3.2078]
[1750429781467,4.00058,2522.6,2522.4,0.79282]
[1750429781672,3.2078,2522.6,2522.2,3.2078]
[1750429781978,0.79283,2522.4,2522.2,3.2078]
[1750429782173,16.4783938,2522.6,2521.8,3.2078]
[1750429782373,1.388,2522.5,2521.8,5.19032]
[1750429782570,0.79287,2522.3,2521.9,1.3281]
[1750429782775,0.79285,2522.4,2522.2,0.79287]
[1750429783071,7.859,2522.5,2521.9,1.3281]
[1750429783267,7.859,2522.5,2522.1,1.9823]
[1750429783463,7.859,2522.5,2522.4,0.79282]
[1750429783670,7.859,2522.7,2522.3,1.98213]
[1750429783870,26.847,2522.6,2522.5,0.79279]
[1750429784074,34.706,2522.7,2522.5,0.79277]
[1750429784271,34.706,2522.7,2522.4,1.3281]
[1750429784576,34.706,2522.7,2522.4,0.79281]
[1750429784577,0.79276,2522.6,2522.4,0.79281]
[1750429784870,0.79276,2522.6,2522.1,3.31039]
[1750429785072,0.7928,2522.5,2522.1,1.3281]
[1750429785273,0.79279,2522.6,2522.4,0.79281]
[1750429785466,0.79278,2522.6,2522.4,0.79281]
[1750429785667,0.79279,2522.5,2522.4,0.79281]
[1750429786076,0.79283,2522.4,2522.3,0.79285]
[1750429786277,0.79283,2522.4,2522.0,1.2654]
[1750429786476,5.18973,2522.6,2522.1,0.7929]
[1750429786776,0.79293,2522.1,2522.0,0.79294]
[1750429786972,47.9659038,2522.2,2521.6,4.4732]
[1750429787173,45.9836638,2522.2,2521.8,0.79299]
[1750429787466,1.9823,2522.1,2521.7,0.79302]
[1750429787779,45.9836638,2522.2,2521.6,4.4732]
[1750429788080,11.2886638,2521.9,2521.3,3.2078]
[1750429788270,0.79309,2521.6,2521.4,0.79311]
[1750429788473,5.19042,2521.7,2521.3,3.2078]
[1750429788675,0.79314,2521.4,2521.3,3.2078]
[1750429789177,0.86246781,2521.5,2521.3,4.00096]
[1750429789374,0.06933781,2521.5,2521.3,4.00096]
[1750429789576,0.86246781,2521.5,2521.3,4.00096]
[1750429790078,26.83,2521.4,2521.3,0.79316]
[1750429790874,27.62316,2521.4,2521.2,0.79319]
[1750429791074,26.83,2521.4,2521.3,0.79318]
[1750429791475,27.62314,2521.4,2521.3,0.79318]
[1750429791978,26.83,2521.4,2521.3,0.79318]
[1750429792180,27.62316,2521.4,2521.1,3.33165]
[1750429792380,27.62316,2521.4,2521.3,0.79318]
[1750429792579,26.83,2521.4,2521.3,0.79318]
[1750429792781,27.62314,2521.4,2521.3,0.79318]
[1750429793278,26.83,2521.4,2521.3,0.79318]
[1750429793579,0.79321,2521.2,2521.1,0.12385]
[1750429794284,0.7932,2521.3,2521.2,0.79321]
[1750429794579,0.79321,2521.2,2521.1,0.12385]
[1750429794784,0.7932,2521.3,2521.2,0.7932]
[1750429795077,0.79321,2521.2,2521.1,0.91707]
[1750429795283,48.04410814,2521.4,2521.1,0.12385]
[1750429795476,48.83727814,2521.4,2521.3,0.79318]
[1750429795974,0.79318,2521.3,2521.2,0.79318]
[1750429796379,48.04410814,2521.4,2521.1,0.12385]
[1750429796581,0.79321,2521.2,2521.1,0.91707]
[1750429796782,0.7932,2521.3,2521.2,0.7932]
[1750429797085,0.79321,2521.2,2521.1,0.91707]
[1750429797879,0.79321,2521.2,2520.3,5.19151]
[1750429797880,0.79337,2520.7,2520.3,5.19151]
[1750429798076,3.2078,2520.9,2520.4,1.98361]
[1750429798384,0.79327,2521.0,2520.9,0.7933]
[1750429798582,26.805,2521.0,2520.9,0.7933]
[1750429798978,26.804,2521.0,2520.9,0.7933]
[1750429799380,27.59727,2521.0,2520.9,0.7933]
[1750429799580,0.7933,2520.9,2520.8,0.79331]
[1750429799988,27.59729,2521.0,2520.9,0.7933]
[1750429800491,28.78721,2521.0,2520.3,3.2078]
[1750429800684,3.2078,2520.8,2520.0,5.3755]
[1750429800981,3.2078,2520.8,2519.4,10.14830814]
[1750429800982,10.14830814,2520.1,2519.7,4.583]
[1750429801184,0.79365,2519.8,2519.7,1.3752]
[1750429801388,3.2078,2519.9,2519.5,0.79372]
[1750429801389,0.79369,2519.7,2519.5,0.79372]
[1750429801588,3.2078,2519.9,2519.5,0.79372]
[1750429801589,26.797,2519.6,2519.5,0.79372]
[1750429801881,30.0048,2519.6,2518.8,3.2078]
[1750429802086,10.14830814,2519.2,2518.9,1.3752]
[1750429802278,3.2078,2519.6,2519.0,3.2078]
[1750429802486,10.14830814,2519.4,2518.9,0.79391]
[1750429802692,0.79385,2519.2,2518.6,4.583]
[1750429802878,26.793,2519.1,2518.6,1.3752]
[1750429803082,7.806,2519.2,2519.1,0.79387]
[1750429803290,7.806,2519.2,2518.8,1.2787]
[1750429803291,34.598,2519.2,2518.8,1.2787]
[1750429803488,35.39185,2519.2,2519.0,0.7939]
[1750429803786,34.598,2519.2,2519.1,0.79387]
[1750429803983,7.806,2519.2,2519.1,0.79387]
[1750429804287,3.2078,2520.2,2519.6,1.98427]
[1750429804585,3.2078,2520.2,2520.1,0.79355]
[1750429804889,0.79357,2520.1,2519.7,1.2787]
[1750429805085,0.79357,2520.1,2519.9,0.7936]
[1750429805293,3.2078,2520.2,2519.7,1.2787]
[1750429805489,3.2078,2520.2,2520.1,0.79355]
[1750429805785,3.2078,2520.2,2520.0,0.79356]
[1750429805987,26.79,2520.3,2519.7,1.2787]
[1750429806287,3.2078,2520.1,2519.7,1.2787]
[1750429806488,44.74430814,2520.0,2519.3,3.9963]
[1750429806681,46.13550814,2520.0,2519.6,0.79369]
[1750429806883,35.9872,2520.0,2519.3,3.9963]
[1750429807187,26.789,2519.9,2519.4,1.3679]
[1750429807387,28.1802,2519.9,2519.3,3.9963]
[1750429807584,0.79367,2519.8,2519.5,0.79372]
[1750429807891,0.7937,2519.7,2519.3,3.9963]
[1750429808082,1.3912,2519.8,2519.5,0.79373]
[1750429808283,0.79371,2519.6,2519.4,0.79375]
[1750429808483,26.786,2519.5,2519.4,0.79375]
[1750429809085,26.786,2519.5,2519.4,1.3679]
[1750429809296,26.786,2519.5,2519.3,4.0016]
[1750429809496,26.786,2519.5,2519.4,0.79377]
[1750429809889,1.98392,2520.1,2519.3,3.2078]
[1750429809890,3.2078,2520.1,2519.3,3.2078]
[1750429810195,0.79377,2519.5,2518.9,5.19261]
[1750429810384,26.783,2519.4,2518.9,1.3268]
[1750429810590,11.30567888,2519.2,2519.1,0.79387]
[1750429810792,7.809,2519.2,2519.1,0.79387]
[1750429810991,0.79379,2519.4,2518.8,2.82507]
[1750429811197,26.78,2519.3,2519.2,0.79384]
[1750429812188,3.2078,2520.1,2519.2,5.0]
[1750429812397,3.2078,2520.1,2520.0,0.79358]
[1750429812602,29.9838,2520.1,2520.0,0.79358]
[1750429812896,30.77735,2520.1,2519.9,0.79359]
[1750429813102,0.7936,2520.0,2519.7,1.3668]
[1750429813289,0.7936,2520.0,2519.2,5.1924]
[1750429813290,14.51347888,2519.8,2519.2,5.1924]
[1750429813490,0.06933781,2519.9,2519.8,0.79365]
[1750429813888,26.84533781,2519.9,2519.8,0.79365]
[1750429814092,26.84533781,2519.9,2519.4,1.3668]
[1750429814292,0.79367,2519.8,2519.4,1.3668]
[1750429814490,3.2078,2520.1,2520.0,0.79358]
[1750429814691,37.7918,2520.1,2520.0,0.79358]
[1750429814903,0.79364,2519.9,2519.7,0.79366]
[1750429815103,34.584,2520.1,2520.0,0.79358]
[1750429815402,35.37755,2520.1,2519.9,0.7936]
[1750429815598,35.37755,2520.1,2519.8,1.3567]
[1750429815599,34.584,2520.1,2520.0,0.79358]
[1750429815801,11.0178,2520.4,2519.8,6.54861]
[1750429816000,0.79352,2520.2,2520.1,0.79354]
[1750429816197,8.60351,2520.3,2520.2,0.79352]
[1750429816397,3.2078,2520.4,2520.3,0.79349]
[1750429816600,19.51347888,2520.4,2519.9,0.79359]
[1750429816903,0.79354,2520.2,2519.8,4.5645]
[1750429817107,27.56155,2520.1,2520.0,0.79358]
[1750429817296,26.768,2520.1,2519.9,0.7936]
[1750429817499,26.768,2520.1,2520.0,0.79358]
[1750429818102,38.07367888,2520.1,2519.5,4.0278]
[1750429818298,43.26538888,2520.1,2519.5,0.82]
[1750429818604,4.00138,2520.1,2519.9,0.7936]
[1750429818808,34.572,2520.0,2519.9,0.7936]
[1750429818999,26.761,2520.1,2520.0,0.79358]
[1750429819303,26.76,2520.1,2520.0,0.79358]
[1750429819808,26.76,2520.1,2519.8,3.2078]
[1750429820002,27.55357,2520.1,2519.9,1.384]
[1750429820397,0.79358,2520.1,2519.5,0.82]
[1750429820598,26.76,2520.1,2519.9,0.7936]
[1750429820802,27.55357,2520.1,2519.9,0.7936]
[1750429821200,0.79358,2520.0,2519.9,0.7936]
[1750429821396,1.98397,2520.0,2519.6,0.7937]
[1750429821609,3.2078,2520.1,2520.0,0.79358]
[1750429821803,35.35756,2520.1,2520.0,0.79358]
[1750429822005,0.79355,2520.2,2520.0,0.79358]
[1750429822202,35.35555,2520.1,2520.0,0.79358]
[1750429822402,34.562,2520.1,2519.6,1.2763]
[1750429822607,0.7936,2520.0,2519.9,0.79361]
[1750429822802,0.79358,2520.0,2519.9,0.79361]
[1750429823107,35.35558,2520.1,2519.6,3.26057]
[1750429823308,0.79359,2520.0,2519.9,0.7936]
[1750429823508,35.35558,2520.1,2519.9,0.7936]
[1750429823708,35.35558,2520.1,2520.0,0.79358]
[1750429823709,34.562,2520.1,2520.0,0.79358]
[1750429823909,7.81,2520.3,2520.1,0.79353]
[1750429824110,26.749,2520.2,2520.0,0.79357]
[1750429824307,0.79358,2520.0,2519.9,2.0699]
[1750429824508,0.79357,2520.1,2520.0,0.79357]
[1750429824906,0.79358,2520.0,2519.9,2.06991]
[1750429825209,0.79364,2519.9,2519.5,4.0278]
[1750429825409,26.745,2519.8,2519.7,0.79368]
[1750429826204,27.53865,2519.8,2519.7,0.79368]
[1750429826510,0.79371,2519.7,2519.6,0.79369]
[1750429826711,27.53867,2519.8,2519.7,0.79368]
[1750429827011,27.53867,2519.8,2519.6,0.79368]
[1750429827012,0.7937,2519.7,2519.6,0.79368]
[1750429827511,26.745,2519.8,2519.7,0.79368]
[1750429827711,27.53865,2519.8,2519.7,0.79368]
[1750429829012,26.745,2519.8,2519.7,0.79368]
[1750429829512,27.53865,2519.8,2519.7,0.79368]
[1750429830106,0.79371,2519.6,2519.5,0.79373]
[1750429830409,0.79382,2519.4,2519.3,0.79378]
[1750429830612,26.73,2519.4,2519.3,0.79378]
[1750429830910,26.73,2519.4,2519.2,0.7938]
[1750429831107,0.79387,2519.1,2519.0,3.2078]
[1750429831405,0.79399,2518.8,2518.7,0.79397]
[1750429831607,12.47526722,2519.4,2519.1,0.79387]
[1750429831807,3.2078,2519.6,2519.1,1.98467]
[1750429832008,1.10225485,2519.5,2519.3,0.79377]
[1750429832211,0.7938,2519.3,2519.2,1.64161]
[1750429832411,27.51978,2519.4,2519.3,0.7938]
[1750429832603,27.82819109,2519.4,2519.3,0.7938]
[1750429832807,28.62196109,2519.4,2519.3,0.7938]
[1750429833203,27.82819109,2519.4,2518.6,0.8478]
[1750429833407,0.79395,2518.9,2518.8,0.79392]
[1750429833609,0.79399,2518.8,2518.7,0.79397]
[1750429834012,0.79399,2518.8,2518.4,1.98521]
[1750429834013,3.2078,2519.2,2518.5,1.98509]
[1750429834213,35.58189238,2519.1,2518.5,1.98509]
[1750429834417,0.79396,2518.8,2518.7,0.79397]
[1750429834617,26.721,2518.8,2518.7,0.79399]
[1750429834919,28.61685567,2518.8,2518.7,0.79399]
[1750429835314,27.82289567,2518.8,2518.7,0.79399]
[1750429835803,28.61685567,2518.8,2518.7,0.79399]
[1750429836711,27.51496,2518.8,2518.7,0.79399]
[1750429837214,0.79402,2518.7,2518.6,0.79401]
[1750429838215,0.79409,2518.4,2518.3,0.8065]
[1750429838421,27.50609,2518.4,2518.3,1.60061]
[1750429838620,0.79415,2518.2,2518.1,1.3022]
[1750429839111,3.2078,2518.6,2518.1,3.28765]
[1750429839317,3.2078,2518.6,2518.5,0.79406]
[1750429839318,4.00184,2518.6,2518.5,0.79406]
[1750429839615,0.79408,2518.5,2518.4,0.79406]
[1750429839819,38.46986,2518.6,2518.5,0.79406]
[1750429840015,39.57118615,2518.6,2518.5,0.79406]
[1750429840519,5.10318615,2518.6,2518.5,0.79406]
[1750429840819,26.707,2518.6,2518.5,0.79406]
[1750429841117,26.707,2518.6,2518.3,4.005]
[1750429841315,26.707,2518.6,2518.5,0.79406]
[1750429841516,3.2078,2518.9,2518.8,0.79396]
[1750429841714,29.9128,2518.9,2518.8,0.79396]
[1750429841917,30.70673,2518.9,2518.8,0.79396]
[1750429842114,29.9128,2518.9,2518.8,0.79396]
[1750429842514,3.2078,2518.9,2518.8,0.79396]
[1750429842816,29.9138,2518.9,2518.8,0.79396]
[1750429843119,30.70777,2518.9,2518.8,0.79396]
[1750429843318,29.9138,2518.9,2518.8,0.79396]
[1750429843816,3.2078,2518.9,2518.8,0.79396]
[1750429844214,29.9078,2518.9,2518.8,0.79396]
[1750429845425,26.7,2518.9,2518.8,0.79396]
[1750429845815,26.7,2518.9,2518.8,2.16606]
[1750429846320,0.79393,2518.9,2518.8,0.79396]
[1750429846518,27.48693,2518.9,2518.8,0.79396]
[1750429846718,26.693,2518.9,2518.8,0.79396]
[1750429846917,26.693,2518.9,2518.8,2.16606]
[1750429847319,4.06753,2519.3,2518.8,2.16606]
[1750429847320,61.08273428,2519.4,2519.1,0.79383]
[1750429847513,0.79386,2519.2,2519.1,0.79383]
[1750429847721,0.79386,2519.2,2519.0,0.79389]
[1750429847722,0.79392,2519.1,2519.0,0.79389]
[1750429848020,27.48189,2519.1,2519.0,0.79387]
[1750429848323,1.98491,2518.8,2518.5,0.79405]
[1750429848527,0.79407,2518.5,2518.4,0.79406]
[1750429848924,45.89637428,2518.7,2518.3,0.7972]
[1750429848925,0.79409,2518.4,2518.3,0.79409]
[1750429849220,26.685,2518.4,2518.3,0.79412]
[1750429849615,3.2078,2518.8,2518.7,0.79399]
[1750429849820,3.2078,2518.8,2518.1,1.2781]
[1750429849821,4.00169,2519.1,2518.6,3.2078]
[1750429850017,26.683,2519.0,2518.9,0.7939]
[1750429851026,26.683,2519.0,2518.5,0.8178]
[1750429851226,0.79395,2518.9,2518.8,0.79395]
[1750429851622,0.79397,2518.8,2518.7,0.79397]
[1750429851828,7.76,2518.8,2518.3,3.2078]
[1750429852025,7.76,2518.8,2518.7,0.79399]
[1750429852223,34.436,2518.8,2518.7,0.79399]
[1750429852528,0.79404,2518.6,2518.4,2.12318]
[1750429852731,27.46908,2518.5,2518.3,4.00191]
[1750429852924,26.674,2518.4,2518.3,0.79411]
[1750429853125,27.46811,2518.4,2518.2,1.64392]
[1750429853320,26.674,2518.4,2518.3,0.79412]
[1750429853730,26.674,2518.4,2518.3,2.12322]
[1750429853929,8.55407,2518.5,2518.4,0.79409]
[1750429854126,26.67,2518.5,2518.4,0.79409]
[1750429854727,27.46406,2518.5,2518.4,0.79409]
[1750429855237,27.46406,2518.5,2518.3,1.3291]
[1750429855238,0.79409,2518.4,2518.3,0.79412]
[1750429855435,0.79412,2518.3,2518.2,1.64393]
[1750429855938,0.79412,2518.3,2518.2,0.79413]
[1750429856135,26.67,2518.5,2518.4,0.79409]
[1750429856329,0.79406,2518.5,2518.4,0.79409]
[1750429856533,27.46006,2518.5,2518.4,0.79409]
[1750429856734,26.663,2518.5,2518.3,1.98528]
[1750429856936,27.45706,2518.5,2518.4,2.11649]
[1750429857140,26.663,2518.5,2518.4,2.11649]
[1750429857838,7.761,2518.8,2518.7,0.79397]
[1750429858040,0.79403,2518.6,2518.5,0.79404]
[1750429858339,0.79403,2518.6,2518.5,0.79406]
[1750429859237,0.79402,2518.7,2518.6,0.79402]
[1750429859530,1.90014664,2518.7,2518.6,0.79402]
[1750429859732,1.10612664,2518.7,2518.6,0.79402]
[1750429860135,7.761,2519.0,2518.7,0.79396]
[1750429860331,0.79401,2518.7,2518.6,0.79401]
[1750429860535,0.79405,2518.6,2518.5,0.79406]
[1750429860736,0.79406,2518.5,2518.4,0.79407]
[1750429861131,36.34213,2518.6,2518.2,1.318]
[1750429861330,0.7941,2518.4,2518.3,0.79411]
[1750429861542,0.7941,2518.4,2518.2,1.318]
[1750429861543,34.357,2518.6,2518.4,0.79406]
[1750429861737,28.55171629,2518.5,2518.4,0.79406]
[1750429862138,27.75765629,2518.5,2518.3,0.7941]
[1750429862446,0.79409,2518.4,2518.3,0.7941]
[1750429862743,1.10924895,2518.4,2518.3,0.79412]
[1750429863438,3.2078,2518.8,2518.7,0.79399]
[1750429863644,4.31706008,2518.8,2518.7,0.79399]
[1750429863839,30.95906008,2518.8,2518.7,0.79399]
[1750429864236,0.79402,2518.6,2518.5,1.321]
[1750429864446,0.79409,2518.5,2518.4,0.79407]
[1750429864742,26.64,2518.5,2518.4,0.79407]
[1750429865849,27.43406,2518.5,2518.4,0.79407]
[1750429866047,26.64,2518.5,2518.2,4.5288]
[1750429866242,0.79412,2518.3,2518.2,1.321]
[1750429866443,1.98526,2518.4,2518.0,0.8399]
[1750429866747,0.79421,2518.0,2517.9,3.2078]
[1750429866951,0.79421,2518.0,2517.6,0.79433]
[1750429866952,0.79434,2517.7,2517.6,0.79433]
[1750429867247,27.42534,2517.7,2517.6,0.79433]
[1750429867450,26.631,2517.7,2517.6,0.79433]
[1750429867637,3.2078,2518.2,2517.6,3.37103]
[1750429867839,0.79425,2517.9,2517.8,3.2078]
[1750429868243,0.79436,2517.6,2517.5,3.2078]
[1750429868449,26.626,2517.6,2517.3,5.3893]
[1750429868649,27.42037,2517.6,2517.5,0.79437]
[1750429868945,15.35192428,2517.9,2517.3,15.54777428]
[1750429868946,3.2078,2517.9,2517.3,15.54777428]
[1750429869150,3.2078,2517.9,2517.8,0.79428]
[1750429869547,29.8308,2517.9,2517.8,0.79428]
[1750429869745,48.9598,2518.4,2518.3,0.79412]
[1750429869950,30.93952095,2518.4,2518.3,0.79412]
[1750429870145,4.31552095,2518.4,2518.3,0.79412]
[1750429870340,0.79398,2518.8,2518.7,0.79399]
[1750429870647,36.22672669,2518.8,2518.7,0.79399]
[1750429870846,1.10774669,2518.8,2518.7,0.79399]
[1750429871151,3.2078,2519.2,2519.1,0.79387]
[1750429871448,4.31699354,2519.2,2519.1,0.79387]
[1750429871647,3.2078,2519.2,2519.1,0.79387]
[1750429872046,3.2078,2519.2,2519.1,1.61437]
[1750429872443,3.2078,2519.2,2519.1,0.79387]
[1750429872750,29.8198,2519.2,2519.1,0.79387]
[1750429873250,34.317,2519.2,2518.8,0.79396]
[1750429873444,34.317,2519.2,2518.7,0.8028]
[1750429873751,26.608,2519.1,2519.0,0.7939]
[1750429873940,26.607,2519.1,2519.0,2.1312]
[1750429874543,0.79382,2519.3,2519.1,0.79384]
[1750429874752,26.607,2519.2,2519.1,0.79384]
[1750429875546,3.2078,2519.6,2519.5,0.79374]
[1750429875854,38.61939864,2519.6,2519.5,0.79374]
[1750429876153,39.41312864,2519.6,2519.4,0.79375]
[1750429876354,1.10859864,2519.5,2519.3,1.2782]
[1750429876649,37.5108,2519.6,2519.5,0.79374]
[1750429876952,38.61739838,2519.6,2519.5,0.79374]
[1750429877344,0.79375,2519.5,2519.4,0.79376]
[1750429877541,37.5108,2519.6,2519.5,0.79374]
[1750429877753,38.61717814,2519.6,2519.3,1.2782]
[1750429877953,37.5108,2519.6,2519.5,0.79374]
[1750429878153,38.61715665,2519.6,2519.5,0.79374]
[1750429878455,38.61715665,2519.6,2519.4,0.79375]
[1750429878652,0.79374,2519.5,2519.4,0.79375]
[1750429878854,48.46300428,2519.6,2519.4,0.79377]
[1750429879044,48.46300428,2519.6,2519.5,0.79374]
[1750429879249,0.79374,2519.5,2519.4,0.79375]
[1750429879449,0.79377,2519.4,2519.3,0.7938]
[1750429879653,0.79376,2519.5,2519.4,0.79377]
[1750429879854,0.79377,2519.4,2519.3,0.79378]
[1750429880048,0.79378,2519.4,2519.3,0.79379]
[1750429880247,0.79382,2519.3,2519.0,1.2702]
[1750429880548,26.584,2519.2,2519.1,0.79387]
[1750429881249,27.37785,2519.2,2518.9,3.2078]
[1750429881648,10.15847428,2519.0,2518.3,3.2078]
[1750429881846,10.15847428,2518.6,2518.0,3.2078]
[1750429882048,0.79416,2518.2,2518.1,0.79417]
[1750429882250,26.574,2518.2,2517.8,0.7892]
[1750429882555,10.15847428,2518.0,2517.8,0.7892]
[1750429882753,10.95270428,2518.0,2517.6,1.3213]
[1750429883051,3.2078,2518.2,2518.1,0.79418]
[1750429883250,29.7778,2518.2,2518.1,0.79418]
[1750429884657,4.00195,2518.2,2518.1,0.79418]
[1750429884950,30.56995,2518.2,2518.1,0.79418]
[1750429885146,26.568,2518.2,2518.1,0.79418]
[1750429885351,27.36215,2518.2,2518.1,0.79418]